[Event "Late-Titled-Tuesday-Blitz-April-02-2024"]
[Site "Chess.com"]
[Date "2024.04.02"]
[Round "2"]
[White "platy3"]
[Black "OriTaichman"]
[Result "1-0"]
[WhiteElo "2946"]
[BlackElo "2557"]
[TimeControl "180+1"]
[EndTime "14:15:32 PDT"]
[Termination "platy3 won by resignation"]

1. e4 {[%clk 0:02:57.2]} 1... c5 {[%clk 0:02:59.7]} 2. Nf3 {[%clk 0:02:57.1]}
2... Nc6 {[%clk 0:03:00]} 3. d4 {[%clk 0:02:57.2]} 3... cxd4 {[%clk 0:03:00.9]}
4. Nxd4 {[%clk 0:02:57.7]} 4... d5 {[%clk 0:03:01.2]} 5. Bb5 {[%clk 0:02:40.7]}
5... dxe4 {[%clk 0:02:59.8]} 6. Nxc6 {[%clk 0:02:38.1]} 6... Qxd1+ {[%clk
0:03:00.7]} 7. Kxd1 {[%clk 0:02:38.5]} 7... a6 {[%clk 0:03:01.1]} 8. Ba4 {[%clk
0:02:38.9]} 8... Bd7 {[%clk 0:03:00.5]} 9. Nc3 {[%clk 0:02:39.2]} 9... Bxc6
{[%clk 0:02:59.8]} 10. Bxc6+ {[%clk 0:02:36.9]} 10... bxc6 {[%clk 0:03:00.7]}
11. Nxe4 {[%clk 0:02:37.6]} 11... f5 {[%clk 0:03:01]} 12. Nc3 {[%clk 0:02:33.3]}
12... O-O-O+ {[%clk 0:02:59.2]} 13. Ke2 {[%clk 0:02:30.4]} 13... e5 {[%clk
0:02:59]} 14. b3 {[%clk 0:02:20.1]} 14... Nf6 {[%clk 0:02:52.3]} 15. Bb2 {[%clk
0:02:20]} 15... g5 {[%clk 0:02:39.7]} 16. Rad1 {[%clk 0:02:17.5]} 16... Bd6
{[%clk 0:02:35.2]} 17. Na4 {[%clk 0:02:17.6]} 17... Nd5 {[%clk 0:02:27.7]} 18.
g3 {[%clk 0:02:13.2]} 18... Rhe8 {[%clk 0:02:21.8]} 19. c4 {[%clk 0:02:12.5]}
19... Nb4 {[%clk 0:02:19.3]} 20. Rd2 {[%clk 0:01:46.9]} 20... Nxa2 {[%clk
0:01:34.7]} 21. Rhd1 {[%clk 0:01:45.8]} 21... Bc7 {[%clk 0:01:28.2]} 22. Ba3
{[%clk 0:01:44.2]} 22... f4 {[%clk 0:01:14.2]} 23. Rxa2 {[%clk 0:01:39.1]} 23...
f3+ {[%clk 0:01:14.4]} 24. Ke1 {[%clk 0:01:39.4]} 24... Rxd1+ {[%clk 0:01:09.7]}
25. Kxd1 {[%clk 0:01:40.3]} 25... e4 {[%clk 0:01:10.1]} 26. Bc5 {[%clk 0:01:40]}
26... h5 {[%clk 0:01:08.9]} 27. Be3 {[%clk 0:01:39.5]} 27... h4 {[%clk
0:01:06.5]} 28. Nc5 {[%clk 0:01:31.6]} 28... hxg3 {[%clk 0:01:03.9]} 29. hxg3
{[%clk 0:01:31.8]} 29... a5 {[%clk 0:01:03.8]} 30. b4 {[%clk 0:01:32.3]} 30...
axb4 {[%clk 0:00:40.1]} 31. Ra8+ {[%clk 0:01:31.8]} 31... Bb8 {[%clk 0:00:40.6]}
32. Na6 {[%clk 0:01:32.7]} 32... Kb7 {[%clk 0:00:38.2]} 33. Rxb8+ {[%clk
0:01:32.5]} 33... Rxb8 {[%clk 0:00:38.2]} 34. Nxb8 {[%clk 0:01:33.4]} 34... Kxb8
{[%clk 0:00:37.1]} 35. Bxg5 {[%clk 0:01:32.6]} 35... Kc7 {[%clk 0:00:37]} 36.
Be3 {[%clk 0:01:32.8]} 36... Kd6 {[%clk 0:00:36.9]} 37. g4 {[%clk 0:01:33.1]}
37... Ke5 {[%clk 0:00:32.2]} 38. Kc2 {[%clk 0:01:33.3]} 38... c5 {[%clk
0:00:29.2]} 39. Kb3 {[%clk 0:01:32.1]} 39... Kd6 {[%clk 0:00:29.2]} 40. g5
{[%clk 0:01:32.1]} 40... Ke5 {[%clk 0:00:28.7]} 41. Bxc5 {[%clk 0:01:32.2]}
41... Kf5 {[%clk 0:00:28.5]} 42. Be3 {[%clk 0:01:33.1]} 1-0

[Event "Late-Titled-Tuesday-Blitz-April-02-2024"]
[Site "Chess.com"]
[Date "2024.04.02"]
[Round "2"]
[White "Firouzja2003"]
[Black "Perecke"]
[Result "1-0"]
[WhiteElo "3093"]
[BlackElo "2621"]
[TimeControl "180+1"]
[EndTime "14:15:35 PDT"]
[Termination "Firouzja2003 won by resignation"]

1. e4 {[%clk 0:02:59.2]} 1... c5 {[%clk 0:02:58.4]} 2. Nf3 {[%clk 0:02:59.9]}
2... e6 {[%clk 0:02:52.7]} 3. g3 {[%clk 0:02:58.6]} 3... Nc6 {[%clk 0:02:51]} 4.
Bg2 {[%clk 0:02:59.2]} 4... b5 {[%clk 0:02:48.7]} 5. O-O {[%clk 0:02:58.7]} 5...
Bb7 {[%clk 0:02:49]} 6. Re1 {[%clk 0:02:59.2]} 6... Nge7 {[%clk 0:02:47.3]} 7.
c3 {[%clk 0:02:59.4]} 7... d5 {[%clk 0:02:46.3]} 8. exd5 {[%clk 0:02:55.8]} 8...
Nxd5 {[%clk 0:02:46.2]} 9. d4 {[%clk 0:02:56.7]} 9... Be7 {[%clk 0:02:28]} 10.
dxc5 {[%clk 0:02:54]} 10... Bxc5 {[%clk 0:02:28.4]} 11. Nbd2 {[%clk 0:02:48.1]}
11... O-O {[%clk 0:02:27.8]} 12. Ne4 {[%clk 0:02:48]} 12... Be7 {[%clk
0:02:28.1]} 13. Qc2 {[%clk 0:02:48.1]} 13... a6 {[%clk 0:02:26.4]} 14. h4 {[%clk
0:02:47.4]} 14... h6 {[%clk 0:02:26.1]} 15. a4 {[%clk 0:02:39]} 15... Qc7 {[%clk
0:02:21.4]} 16. Qe2 {[%clk 0:02:37.8]} 16... bxa4 {[%clk 0:02:01]} 17. Rxa4
{[%clk 0:02:37.2]} 17... a5 {[%clk 0:02:01.4]} 18. c4 {[%clk 0:02:24.5]} 18...
Ba6 {[%clk 0:01:46.6]} 19. b3 {[%clk 0:02:20.5]} 19... Bb4 {[%clk 0:01:36.6]}
20. Rd1 {[%clk 0:02:13.4]} 20... Rad8 {[%clk 0:01:35.5]} 21. Bb2 {[%clk
0:02:09.7]} 21... e5 {[%clk 0:01:31.8]} 22. Qc2 {[%clk 0:01:50]} 22... Nb6
{[%clk 0:01:31.2]} 23. Raa1 {[%clk 0:01:49.6]} 23... f5 {[%clk 0:01:19.4]} 24.
Nc3 {[%clk 0:01:49.7]} 24... e4 {[%clk 0:01:18]} 25. Nd5 {[%clk 0:01:50]} 25...
Nxd5 {[%clk 0:00:53.4]} 26. cxd5 {[%clk 0:01:49.6]} 26... exf3 {[%clk
0:00:27.5]} 27. Bxf3 {[%clk 0:01:50.5]} 27... f4 {[%clk 0:00:28]} 28. g4 {[%clk
0:01:45.7]} 28... Qe7 {[%clk 0:00:17.5]} 29. dxc6 {[%clk 0:01:43]} 29... Qxh4
{[%clk 0:00:17.8]} 30. Qg6 {[%clk 0:01:39.9]} 30... Qe7 {[%clk 0:00:13.4]} 31.
Rd5 {[%clk 0:01:35.1]} 31... Be2 {[%clk 0:00:09.6]} 32. Rxd8 {[%clk 0:01:31.3]}
32... Bxf3 {[%clk 0:00:06]} 33. Rd7 {[%clk 0:01:31.1]} 1-0

[Event "Late-Titled-Tuesday-Blitz-April-02-2024"]
[Site "Chess.com"]
[Date "2024.04.02"]
[Round "2"]
[White "bascheyaro"]
[Black "guillembaches"]
[Result "1-0"]
[WhiteElo "2825"]
[BlackElo "2563"]
[TimeControl "180+1"]
[EndTime "14:15:40 PDT"]
[Termination "bascheyaro won on time"]

1. d4 {[%clk 0:03:00.9]} 1... d5 {[%clk 0:03:00.2]} 2. Nf3 {[%clk 0:03:00.9]}
2... Nf6 {[%clk 0:02:59.1]} 3. c4 {[%clk 0:03:01.2]} 3... e6 {[%clk 0:02:58.9]}
4. Nc3 {[%clk 0:03:01.8]} 4... a6 {[%clk 0:02:57.4]} 5. Bg5 {[%clk 0:03:02]}
5... dxc4 {[%clk 0:02:49.7]} 6. e3 {[%clk 0:03:02.2]} 6... b5 {[%clk 0:02:48.7]}
7. a4 {[%clk 0:03:02.3]} 7... Bb7 {[%clk 0:02:37.4]} 8. axb5 {[%clk 0:03:01]}
8... axb5 {[%clk 0:02:37.4]} 9. Rxa8 {[%clk 0:03:01.2]} 9... Bxa8 {[%clk
0:02:37.4]} 10. Nxb5 {[%clk 0:02:59.1]} 10... Bb4+ {[%clk 0:02:29.5]} 11. Nc3
{[%clk 0:02:58.9]} 11... h6 {[%clk 0:02:12]} 12. Bxf6 {[%clk 0:02:58.2]} 12...
gxf6 {[%clk 0:01:58.8]} 13. Qa4+ {[%clk 0:02:57.4]} 13... Nc6 {[%clk 0:01:56.1]}
14. Bxc4 {[%clk 0:02:56.8]} 14... O-O {[%clk 0:01:40.9]} 15. O-O {[%clk
0:02:56.2]} 15... Bd6 {[%clk 0:01:40.8]} 16. Ra1 {[%clk 0:02:52.3]} 16... Ne7
{[%clk 0:01:39.1]} 17. Qd1 {[%clk 0:02:48.4]} 17... Ng6 {[%clk 0:01:28.7]} 18.
d5 {[%clk 0:02:27.6]} 18... e5 {[%clk 0:01:02.4]} 19. Bd3 {[%clk 0:02:20.4]}
19... Kg7 {[%clk 0:00:58.9]} 20. Bf5 {[%clk 0:02:12]} 20... Rg8 {[%clk
0:00:52.7]} 21. e4 {[%clk 0:02:02.8]} 21... Kf8 {[%clk 0:00:46.7]} 22. g3 {[%clk
0:02:02.7]} 22... Ke7 {[%clk 0:00:43.7]} 23. Nb5 {[%clk 0:01:56.3]} 23... Qb8
{[%clk 0:00:32.7]} 24. Nxd6 {[%clk 0:01:52.6]} 24... cxd6 {[%clk 0:00:32.9]} 25.
Qa4 {[%clk 0:01:48.2]} 25... Kf8 {[%clk 0:00:18.9]} 26. Qd7 {[%clk 0:01:44.9]}
26... Kg7 {[%clk 0:00:11.1]} 27. Bxg6 {[%clk 0:01:43.3]} 27... Kxg6 {[%clk
0:00:10.8]} 28. Nh4+ {[%clk 0:01:43.7]} 28... Kg7 {[%clk 0:00:10.9]} 29. Ra7
{[%clk 0:01:38.5]} 29... Rf8 {[%clk 0:00:07.7]} 30. Qg4+ {[%clk 0:01:38.4]}
30... Kh8 {[%clk 0:00:07.7]} 31. Nf5 {[%clk 0:01:38.5]} 31... Rg8 {[%clk
0:00:07.6]} 32. Qh5 {[%clk 0:01:38.9]} 1-0

[Event "Late-Titled-Tuesday-Blitz-April-02-2024"]
[Site "Chess.com"]
[Date "2024.04.02"]
[Round "2"]
[White "FairChess_on_YouTube"]
[Black "Crazy_girl99"]
[Result "1-0"]
[WhiteElo "3054"]
[BlackElo "2618"]
[TimeControl "180+1"]
[EndTime "14:15:51 PDT"]
[Termination "FairChess_on_YouTube won on time"]

1. d4 {[%clk 0:02:37.2]} 1... Nf6 {[%clk 0:01:40.4]} 2. Bg5 {[%clk 0:01:41.5]}
2... d5 {[%clk 0:01:36.2]} 3. Nd2 {[%clk 0:01:40.8]} 3... h6 {[%clk 0:01:34.8]}
4. Bxf6 {[%clk 0:01:40.5]} 4... exf6 {[%clk 0:01:35.1]} 5. e3 {[%clk 0:01:41]}
5... f5 {[%clk 0:01:35.5]} 6. c4 {[%clk 0:01:40.8]} 6... c6 {[%clk 0:01:35.5]}
7. cxd5 {[%clk 0:01:39.4]} 7... cxd5 {[%clk 0:01:35.7]} 8. Ne2 {[%clk
0:01:38.3]} 8... Nc6 {[%clk 0:01:35.6]} 9. Nf4 {[%clk 0:01:37.2]} 9... g6 {[%clk
0:01:19.4]} 10. g3 {[%clk 0:01:36]} 10... Be6 {[%clk 0:01:18]} 11. Bg2 {[%clk
0:01:32.2]} 11... Be7 {[%clk 0:01:14.2]} 12. Qb3 {[%clk 0:01:30.5]} 12... O-O
{[%clk 0:01:00.4]} 13. Bxd5 {[%clk 0:01:30.3]} 13... Bxd5 {[%clk 0:00:51.5]} 14.
Nxd5 {[%clk 0:01:31.2]} 14... Bd6 {[%clk 0:00:23.4]} 15. Nc3 {[%clk 0:01:30.2]}
15... Re8 {[%clk 0:00:22.5]} 16. O-O {[%clk 0:01:28.7]} 16... f4 {[%clk
0:00:19.2]} 17. Nde4 {[%clk 0:01:26.8]} 17... Bf8 {[%clk 0:00:18.2]} 18. gxf4
{[%clk 0:01:26]} 18... Bg7 {[%clk 0:00:16.3]} 19. Ng3 {[%clk 0:01:21.5]} 19...
Qd7 {[%clk 0:00:15.8]} 20. Qd5 {[%clk 0:01:18.2]} 20... Qh3 {[%clk 0:00:12.7]}
21. Qg2 {[%clk 0:01:18.3]} 21... Qd7 {[%clk 0:00:12]} 22. f5 {[%clk 0:01:18.2]}
22... Kh7 {[%clk 0:00:09.6]} 23. Kh1 {[%clk 0:01:16.1]} 23... gxf5 {[%clk
0:00:09.3]} 24. Nh5 {[%clk 0:01:16.4]} 24... Bh8 {[%clk 0:00:09.1]} 25. Nd5
{[%clk 0:01:14.3]} 25... Qe6 {[%clk 0:00:07.3]} 26. Nc7 {[%clk 0:01:13.6]} 26...
Qd6 {[%clk 0:00:04.1]} 27. Nxe8 {[%clk 0:01:12.1]} 27... Rxe8 {[%clk 0:00:05]}
28. Rg1 {[%clk 0:01:12.6]} 28... f4 {[%clk 0:00:03.6]} 29. Ng7 {[%clk
0:01:10.1]} 1-0

[Event "Late-Titled-Tuesday-Blitz-April-02-2024"]
[Site "Chess.com"]
[Date "2024.04.02"]
[Round "2"]
[White "karinachess1"]
[Black "SpeedofLight0"]
[Result "0-1"]
[WhiteElo "2617"]
[BlackElo "3052"]
[TimeControl "180+1"]
[EndTime "14:15:51 PDT"]
[Termination "SpeedofLight0 won by resignation"]

1. d4 {[%clk 0:02:53.6]} 1... d6 {[%clk 0:03:00]} 2. Nf3 {[%clk 0:02:51.3]} 2...
g6 {[%clk 0:02:59.7]} 3. g3 {[%clk 0:02:51.6]} 3... Bd7 {[%clk 0:02:59.5]} 4.
Bg2 {[%clk 0:02:45.5]} 4... Qc8 {[%clk 0:02:59.5]} 5. O-O {[%clk 0:02:46]} 5...
Bh3 {[%clk 0:02:59.4]} 6. Re1 {[%clk 0:02:46.7]} 6... Bxg2 {[%clk 0:02:59.5]} 7.
Kxg2 {[%clk 0:02:47]} 7... h5 {[%clk 0:03:00.3]} 8. h4 {[%clk 0:02:47.4]} 8...
Bg7 {[%clk 0:03:00]} 9. e4 {[%clk 0:02:45.7]} 9... Nc6 {[%clk 0:03:00.4]} 10. c3
{[%clk 0:02:38.9]} 10... Nh6 {[%clk 0:02:58.9]} 11. Bg5 {[%clk 0:02:37.6]} 11...
O-O {[%clk 0:02:56.5]} 12. Nbd2 {[%clk 0:02:36.5]} 12... e5 {[%clk 0:02:55]} 13.
d5 {[%clk 0:02:35.1]} 13... Nb8 {[%clk 0:02:54.6]} 14. c4 {[%clk 0:02:00.3]}
14... Nd7 {[%clk 0:02:53.8]} 15. b4 {[%clk 0:01:59]} 15... Ng4 {[%clk
0:02:53.1]} 16. Nb3 {[%clk 0:01:52]} 16... f6 {[%clk 0:02:53.1]} 17. Be3 {[%clk
0:01:48.3]} 17... f5 {[%clk 0:02:53.3]} 18. Bg5 {[%clk 0:01:45.8]} 18... Ndf6
{[%clk 0:02:51.2]} 19. Nbd2 {[%clk 0:01:15]} 19... Qd7 {[%clk 0:02:44.3]} 20.
Qc2 {[%clk 0:01:09.3]} 20... fxe4 {[%clk 0:02:34.9]} 21. Nxe4 {[%clk 0:01:09.5]}
21... Nxe4 {[%clk 0:02:35.8]} 22. Qxe4 {[%clk 0:01:06.5]} 22... Rxf3 {[%clk
0:02:35.5]} 23. Qxf3 {[%clk 0:00:59.2]} 23... Rf8 {[%clk 0:02:35.6]} 24. Qe4
{[%clk 0:00:58.6]} 24... Rxf2+ {[%clk 0:02:34.8]} 25. Kg1 {[%clk 0:00:59.2]}
25... Qf5 {[%clk 0:02:18]} 26. Qxf5 {[%clk 0:00:55.9]} 26... gxf5 {[%clk
0:02:18.9]} 27. Rf1 {[%clk 0:00:55.4]} 27... Rb2 {[%clk 0:02:15.6]} 28. Rxf5
{[%clk 0:00:34.9]} 28... e4 {[%clk 0:02:13.9]} 29. Rd1 {[%clk 0:00:29.8]} 29...
e3 {[%clk 0:02:13.6]} 30. Rf4 {[%clk 0:00:21]} 30... e2 {[%clk 0:02:07.5]} 31.
Re1 {[%clk 0:00:20.9]} 31... Bc3 {[%clk 0:02:07.5]} 32. Rxg4 {[%clk 0:00:09.1]}
32... hxg4 {[%clk 0:02:06]} 33. Kf2 {[%clk 0:00:08.6]} 33... Bxe1+ {[%clk
0:02:04]} 34. Kxe1 {[%clk 0:00:09.5]} 34... Rxb4 {[%clk 0:01:54.8]} 35. Kxe2
{[%clk 0:00:09.5]} 35... Rxc4 {[%clk 0:01:55.2]} 36. Ke3 {[%clk 0:00:10.2]}
36... Ra4 {[%clk 0:01:55]} 37. a3 {[%clk 0:00:09.1]} 37... a5 {[%clk 0:01:46.1]}
38. Bd8 {[%clk 0:00:08.8]} 38... Rxa3+ {[%clk 0:01:44.8]} 39. Kf4 {[%clk
0:00:08.8]} 39... Rc3 {[%clk 0:01:45.2]} 40. Kg5 {[%clk 0:00:07.3]} 40... a4
{[%clk 0:01:45.2]} 41. h5 {[%clk 0:00:07.4]} 41... Kh7 {[%clk 0:01:44.6]} 42.
Kxg4 {[%clk 0:00:06.2]} 42... a3 {[%clk 0:01:44.6]} 43. Bf6 {[%clk 0:00:07.1]}
43... Rc4+ {[%clk 0:01:45]} 44. Kf5 {[%clk 0:00:07]} 44... Rc1 {[%clk
0:01:42.3]} 45. g4 {[%clk 0:00:06.1]} 45... Rf1+ {[%clk 0:01:42.2]} 46. Ke6
{[%clk 0:00:06.7]} 46... Rxf6+ {[%clk 0:01:41.2]} 47. Kxf6 {[%clk 0:00:07.6]}
47... a2 {[%clk 0:01:41.8]} 0-1

[Event "Late-Titled-Tuesday-Blitz-April-02-2024"]
[Site "Chess.com"]
[Date "2024.04.02"]
[Round "2"]
[White "MikaelyanArman"]
[Black "TheoSlade"]
[Result "1-0"]
[WhiteElo "2824"]
[BlackElo "2391"]
[TimeControl "180+1"]
[EndTime "14:15:58 PDT"]
[Termination "MikaelyanArman won by checkmate"]

1. e3 {[%clk 0:02:57.8]} 1... Nf6 {[%clk 0:02:58.9]} 2. b3 {[%clk 0:02:58.4]}
2... d5 {[%clk 0:02:55.9]} 3. Bb2 {[%clk 0:02:59]} 3... e6 {[%clk 0:02:56.5]} 4.
Nf3 {[%clk 0:02:59.1]} 4... b6 {[%clk 0:02:54.6]} 5. Be2 {[%clk 0:02:59.6]} 5...
Bb7 {[%clk 0:02:53.8]} 6. O-O {[%clk 0:03:00.3]} 6... Bd6 {[%clk 0:02:51.6]} 7.
c4 {[%clk 0:03:00.9]} 7... O-O {[%clk 0:02:51.6]} 8. Nc3 {[%clk 0:03:01.5]} 8...
Nbd7 {[%clk 0:02:48.9]} 9. cxd5 {[%clk 0:03:01]} 9... exd5 {[%clk 0:02:48.7]}
10. Nb5 {[%clk 0:03:01.6]} 10... Be7 {[%clk 0:02:47.3]} 11. Rc1 {[%clk
0:02:59.2]} 11... c6 {[%clk 0:02:47.6]} 12. Nbd4 {[%clk 0:02:59.4]} 12... Rc8
{[%clk 0:02:41.6]} 13. Nf5 {[%clk 0:02:59.5]} 13... Bc5 {[%clk 0:02:33.4]} 14.
Ne5 {[%clk 0:02:55.1]} 14... Nxe5 {[%clk 0:02:28.7]} 15. Bxe5 {[%clk 0:02:56]}
15... Re8 {[%clk 0:02:29.1]} 16. d4 {[%clk 0:02:52.1]} 16... Ba3 {[%clk
0:02:26]} 17. Rc2 {[%clk 0:02:49.1]} 17... g6 {[%clk 0:02:20]} 18. Nh6+ {[%clk
0:02:48.5]} 18... Kf8 {[%clk 0:02:13.2]} 19. Bd3 {[%clk 0:02:49]} 19... Bd6
{[%clk 0:02:09]} 20. f4 {[%clk 0:02:49]} 20... Ne4 {[%clk 0:01:58]} 21. f5
{[%clk 0:02:47.1]} 21... Bxe5 {[%clk 0:01:32.3]} 22. dxe5 {[%clk 0:02:48]} 22...
Qh4 {[%clk 0:01:32]} 23. Bxe4 {[%clk 0:02:38.6]} 23... Qxh6 {[%clk 0:01:28.1]}
24. fxg6 {[%clk 0:02:34.6]} 24... Qxe3+ {[%clk 0:01:16.5]} 25. Kh1 {[%clk
0:02:33.3]} 25... Qxe4 {[%clk 0:01:09.6]} 26. Rxf7+ {[%clk 0:02:18.5]} 26... Kg8
{[%clk 0:01:09.8]} 27. Rxb7 {[%clk 0:02:19.3]} 27... hxg6 {[%clk 0:00:57]} 28.
Re2 {[%clk 0:02:07.5]} 28... Qg4 {[%clk 0:00:56.7]} 29. h3 {[%clk 0:02:00.2]}
29... Qh5 {[%clk 0:00:54.8]} 30. Qf1 {[%clk 0:01:48.5]} 30... Rf8 {[%clk
0:00:52.9]} 31. Rf2 {[%clk 0:01:39.5]} 31... Qxe5 {[%clk 0:00:52.6]} 32. Rff7
{[%clk 0:01:39.6]} 32... Rce8 {[%clk 0:00:32.2]} 33. Qf4 {[%clk 0:01:30.7]}
33... Qe1+ {[%clk 0:00:07.2]} 34. Kh2 {[%clk 0:01:29.2]} 34... Qa1 {[%clk
0:00:07.8]} 35. Qc7 {[%clk 0:01:17.2]} 35... Qe5+ {[%clk 0:00:02.8]} 36. Qxe5
{[%clk 0:01:16.2]} 36... Rxe5 {[%clk 0:00:03.7]} 37. Rg7+ {[%clk 0:01:16.7]}
37... Kh8 {[%clk 0:00:04.3]} 38. Rh7+ {[%clk 0:01:17.3]} 38... Kg8 {[%clk
0:00:05]} 39. Rbg7# {[%clk 0:01:17.7]} 1-0

[Event "Late-Titled-Tuesday-Blitz-April-02-2024"]
[Site "Chess.com"]
[Date "2024.04.02"]
[Round "2"]
[White "Resignify"]
[Black "Balla_Tamas"]
[Result "0-1"]
[WhiteElo "2244"]
[BlackElo "2492"]
[TimeControl "180+1"]
[EndTime "14:16:01 PDT"]
[Termination "Balla_Tamas won by resignation"]

1. e4 {[%clk 0:03:00.9]} 1... c5 {[%clk 0:03:00.2]} 2. Nc3 {[%clk 0:03:00.3]}
2... Nc6 {[%clk 0:03:00.5]} 3. g3 {[%clk 0:03:00.4]} 3... g6 {[%clk 0:03:00.5]}
4. Bg2 {[%clk 0:03:00.3]} 4... Bg7 {[%clk 0:03:01]} 5. d3 {[%clk 0:03:00.3]}
5... e6 {[%clk 0:03:00.7]} 6. Be3 {[%clk 0:03:00]} 6... d6 {[%clk 0:03:01.2]} 7.
f4 {[%clk 0:02:59.5]} 7... Nge7 {[%clk 0:03:01.1]} 8. Nf3 {[%clk 0:02:59.1]}
8... O-O {[%clk 0:03:01.1]} 9. O-O {[%clk 0:02:58.7]} 9... Rb8 {[%clk
0:03:01.3]} 10. Rb1 {[%clk 0:02:57.9]} 10... b5 {[%clk 0:03:01.3]} 11. a3 {[%clk
0:02:57.5]} 11... a5 {[%clk 0:02:58.8]} 12. Ne2 {[%clk 0:02:56.9]} 12... b4
{[%clk 0:02:58.5]} 13. axb4 {[%clk 0:02:56.3]} 13... axb4 {[%clk 0:02:58.6]} 14.
c3 {[%clk 0:02:55.5]} 14... Ba6 {[%clk 0:02:51.6]} 15. c4 {[%clk 0:02:54]} 15...
b3 {[%clk 0:02:51]} 16. Nd2 {[%clk 0:02:34.9]} 16... Qb6 {[%clk 0:02:42.7]} 17.
Nc1 {[%clk 0:02:33.8]} 17... Na5 {[%clk 0:02:35.4]} 18. Bf3 {[%clk 0:02:11]}
18... d5 {[%clk 0:02:34.8]} 19. exd5 {[%clk 0:01:50]} 19... exd5 {[%clk
0:02:33.8]} 20. cxd5 {[%clk 0:01:49.2]} 20... Rfd8 {[%clk 0:02:32.9]} 21. Ne4
{[%clk 0:01:17.5]} 21... Nxd5 {[%clk 0:02:31.3]} 22. Bxc5 {[%clk 0:01:08.6]}
22... Qb5 {[%clk 0:02:26.2]} 23. Re1 {[%clk 0:01:01.8]} 23... Nb4 {[%clk
0:02:19]} 24. d4 {[%clk 0:00:43.9]} 24... Nc2 {[%clk 0:02:13.7]} 25. Be2 {[%clk
0:00:22.1]} 25... Qc6 {[%clk 0:01:50.4]} 26. Bxa6 {[%clk 0:00:21.2]} 26... Nxe1
{[%clk 0:01:50.7]} 27. Qxe1 {[%clk 0:00:18.9]} 27... Qxa6 {[%clk 0:01:50.4]} 28.
Ra1 {[%clk 0:00:19.8]} 28... Bxd4+ {[%clk 0:01:27.3]} 29. Bxd4 {[%clk
0:00:19.5]} 29... Rxd4 {[%clk 0:01:27.5]} 30. Rxa5 {[%clk 0:00:18.9]} 30... Rxe4
{[%clk 0:01:26.6]} 31. Qxe4 {[%clk 0:00:16.3]} 31... Qxa5 {[%clk 0:01:26.1]} 32.
Nd3 {[%clk 0:00:10.6]} 32... Rd8 {[%clk 0:01:20.4]} 0-1

[Event "Late-Titled-Tuesday-Blitz-April-02-2024"]
[Site "Chess.com"]
[Date "2024.04.02"]
[Round "2"]
[White "Kirill_Klukin"]
[Black "VanRommel28"]
[Result "1/2-1/2"]
[WhiteElo "2807"]
[BlackElo "2567"]
[TimeControl "180+1"]
[EndTime "14:16:02 PDT"]
[Termination "Game drawn by agreement"]

1. d4 {[%clk 0:03:00.9]} 1... g6 {[%clk 0:02:58.5]} 2. Nf3 {[%clk 0:03:00.9]}
2... Bg7 {[%clk 0:02:58.8]} 3. c4 {[%clk 0:03:00.9]} 3... d6 {[%clk 0:02:58.9]}
4. Nc3 {[%clk 0:03:01.2]} 4... e5 {[%clk 0:02:53.3]} 5. Bg5 {[%clk 0:02:57.3]}
5... f6 {[%clk 0:02:50.6]} 6. Bh4 {[%clk 0:02:57.7]} 6... Nd7 {[%clk 0:02:46.7]}
7. e3 {[%clk 0:02:56]} 7... Ne7 {[%clk 0:02:44.9]} 8. dxe5 {[%clk 0:02:48.9]}
8... dxe5 {[%clk 0:02:42.4]} 9. Be2 {[%clk 0:02:47.1]} 9... Nf5 {[%clk
0:02:31.9]} 10. Bg3 {[%clk 0:02:47.2]} 10... c6 {[%clk 0:02:26.6]} 11. Qc2
{[%clk 0:02:45.6]} 11... Qe7 {[%clk 0:02:25]} 12. Rd1 {[%clk 0:02:40.6]} 12...
O-O {[%clk 0:02:21.5]} 13. O-O {[%clk 0:02:36.3]} 13... a5 {[%clk 0:02:12.9]}
14. Nd2 {[%clk 0:02:32.5]} 14... Nc5 {[%clk 0:02:09]} 15. Nde4 {[%clk
0:02:30.4]} 15... Nxg3 {[%clk 0:02:04.9]} 16. hxg3 {[%clk 0:02:28.4]} 16... Bf5
{[%clk 0:02:01.5]} 17. g4 {[%clk 0:02:26.4]} 17... Bxe4 {[%clk 0:01:54.6]} 18.
Nxe4 {[%clk 0:02:26.6]} 18... Rfd8 {[%clk 0:01:54.5]} 19. g3 {[%clk 0:02:18.4]}
19... Bf8 {[%clk 0:01:46.8]} 20. Bf3 {[%clk 0:02:12.3]} 20... Nxe4 {[%clk
0:01:43.5]} 21. Bxe4 {[%clk 0:02:13.2]} 21... Rxd1 {[%clk 0:01:43.8]} 22. Rxd1
{[%clk 0:02:13.2]} 22... Rd8 {[%clk 0:01:44.7]} 23. Rxd8 {[%clk 0:02:02]} 23...
Qxd8 {[%clk 0:01:44.8]} 24. Qb3 {[%clk 0:02:02.8]} 24... Qc7 {[%clk 0:01:34.3]}
25. Qd3 {[%clk 0:01:47.8]} 25... Kg7 {[%clk 0:01:33]} 26. Kg2 {[%clk 0:01:42.3]}
26... Bc5 {[%clk 0:01:32.5]} 27. b3 {[%clk 0:01:40.5]} 27... Qd6 {[%clk
0:01:32.3]} 28. Qc2 {[%clk 0:01:40.5]} 28... Bb4 {[%clk 0:01:30.7]} 29. Bd3
{[%clk 0:01:31.6]} 29... Bc5 {[%clk 0:01:22]} 30. Qe2 {[%clk 0:01:30.3]} 30...
Bb4 {[%clk 0:01:21.2]} 31. f4 {[%clk 0:01:23.5]} 31... Bc5 {[%clk 0:01:20.3]}
32. Kf3 {[%clk 0:01:18.9]} 32... Bb4 {[%clk 0:01:15.4]} 33. Qc2 {[%clk
0:01:15.9]} 33... Bc5 {[%clk 0:01:12.9]} 34. Ke2 {[%clk 0:00:39.8]} 34... Qe7
{[%clk 0:01:06.8]} 35. f5 {[%clk 0:00:21.2]} 35... g5 {[%clk 0:01:05.2]} 36. Kf3
{[%clk 0:00:21.6]} 36... Qd6 {[%clk 0:01:03.3]} 37. Be4 {[%clk 0:00:21.4]} 37...
Bb4 {[%clk 0:01:02.5]} 38. Qd3 {[%clk 0:00:20.3]} 1/2-1/2